Cogmind - Beta 13 @@@ ROGUE MODE // 2024.04.08 @ 10:32:28 Player: Mr.Morel Result: Self-destructed Performance ------------- Evolutions (1) 500 Regions Visited (3) 600 Robots Destroyed (13) 65 Value Destroyed (241) 241 Prototype IDs (0) 0 Alien Tech Used (0) 0 Bonus (0) 0 TOTAL SCORE: 1406 Bonus ------- None Cogmind --------- Core Integrity 341/400 Matter 300/300 Energy 125/125 System Corruption 0% Temperature Cool (0) Movement Core (250) Ox4 Location -9/Materials Parts ------- > --- POWER (1) -------- Light Ion Engine > --- PROPULSION (3) --- (None) > --- UTILITY (2) ------ Heat Sink Small Storage Unit > --- WEAPON (3) ------- Spread Laser Light Assault Rifle Light Assault Rifle > --- INVENTORY (8) ---- Particle Gun Assault Rifle Peak State ------------ > --- POWER ------------ Light Ion Engine > --- PROPULSION ------- Aluminum Leg Aluminum Leg > --- UTILITY ---------- Heat Sink Small Storage Unit > --- WEAPON ----------- Spread Laser Light Assault Rifle Light Assault Rifle > --- INVENTORY -------- Particle Gun Assault Rifle [Rating: 9] Favorites ----------- Power Ion Engine Engine Ion Engine Propulsion Aluminum Leg Leg Aluminum Leg Utility Small Storage Unit Device Heat Sink Storage Small Storage Unit Weapon Assault Rifle Energy Gun Medium Laser Ballistic Gun Assault Rifle Build | -11 -10 -10 -9 ------- Run | Yrd Mat Min Mat Slots Evolved 2 | . . . 2 Power . | . . . . Propulsion 1 | . . . 1 Utility . | . . . . Weapon 1 | . . . 1 Parts Attached 11 | 4 3 2 2 Power 2 | 1 . 1 . Engine 2 | 1 . 1 . Core . | . . . . Reactor . | . . . . Propulsion 2 | . 2 . . Treads . | . . . . Leg 2 | . 2 . . Wheel . | . . . . Hover . | . . . . Flight . | . . . . Utility 2 | 1 1 . . Device 1 | . 1 . . Storage 1 | 1 . . . Processor . | . . . . Hackware . | . . . . Protection . | . . . . Artifact . | . . . . Weapon 5 | 2 . 1 2 Energy Gun 2 | 1 . . 1 Energy Cannon . | . . . . Ballistic Gun 3 | 1 . 1 1 Ballistic Cannon . | . . . . Launcher . | . . . . Special Weapon . | . . . . Impact Weapon . | . . . . Slashing Weapon . | . . . . Piercing Weapon . | . . . . Special Melee Weapon . | . . . . Unidentified Prototypes . | . . . . Parts Lost 3 | . 1 . 2 Power . | . . . . Propulsion 2 | . . . 2 Utility . | . . . . Weapon 1 | . 1 . . Highest Loss Streak 1 | . 1 . 1 To Critical Strikes . | . . . . Average Slot Usage (%) 85 | . 82 100 85 Engine 13 | . 14 14 11 Leg 20 | . 18 28 19 Device 9 | . 8 14 11 Storage 13 | . 14 14 11 Energy Gun 9 | . 12 . 7 Ballistic Gun 18 | . 14 28 25 Naked Turns . | . . . . Heaviest Build 15 | 14 15 12 14 Greatest Support 20 | 3 20 20 20 Greatest Overweight (x) 4 | 4 4 . 4 Average Overweight (x) . | 3 . . . Largest Inventory Capacity 8 | 8 8 8 8 Average Capacity 7 | 7 8 8 8 Most Carried 5 | 5 4 1 2 Average Carried 2 | 3 2 . 1 Final Capacity 8 | 8 8 8 8 Final Carried 4 | 4 2 1 2 Class Distribution -------------------- 78% | Mutant 21% | Gunner Dominant Class ---------------- Mutant | -10/Materials Mutant | -10/Mines Gunner | -9/Materials Resources | -11 -10 -10 -9 ----------- Run | Yrd Mat Min Mat Matter Collected 395 | 180 132 29 54 Remotely . | . . . . Salvage Created 281 | . 137 29 115 Parts 20 | . 11 4 5 Haulers Intercepted . | . . . . Recyclers Shooed . | . . . . Parts Field Recycled . | . . . . Retrieved Matter . | . . . . Parts Self-Destructed . | . . . . Prevented . | . . . . Kills | -11 -10 -10 -9 ------- Run | Yrd Mat Min Mat Combat Hostiles Destroyed 12 | . 7 2 3 Guns 12 | . 7 2 3 Classes Destroyed 4 | . 2 . 2 Worker 1 | . . . 1 Swarmer 8 | . 6 2 . Grunt 3 | . 1 . 2 Sentry 1 | . . . 1 Best Kill Streak 4 | . 3 2 4 Combat Bots Only 3 | . 3 2 3 Max Kills in Single Turn 2 | . 2 1 1 Gunslinging 1 | . 1 . . Exploded . | . . . . Melee . | . . . . Uniques/NPCs Destroyed . | . . . . Combat | -11 -10 -10 -9 -------- Run | Yrd Mat Min Mat Hostile Shots Fired 89 | . 52 13 24 Missed 23 | . 15 4 4 Damage Taken 748 | . 395 67 286 Core 151 | . 92 . 59 Absorbed by Shields . | . . . . Core Remaining (%) 81 | 100 . 63 . Volleys Fired 38 | . 20 6 12 Largest 3 | . 2 2 3 Hottest 105 | . 70 40 105 Shots Fired 88 | . 40 12 36 Gun 88 | . 40 12 36 Cannon . | . . . . Launcher . | . . . . Special . | . . . . Kinetic 56 | . 20 12 24 Thermal 32 | . 20 . 12 Explosive . | . . . . Electromagnetic . | . . . . Robot Hit Streak 15 | . 6 3 15 Robot Miss Streak 5 | . 2 5 5 Penetration Max . | . . . . Secondary Targets 2 | . 2 . . Max Gunslinging Chain 1 | . 1 . . Shots Hit Robots 58 | . 26 5 27 Core Hits 30 | . 9 3 18 Critical Kills . | . . . . Critical Parts Destroyed 1 | . 1 . . Critical Strikes 4 | . 4 . . Burn 3 | . 3 . . Destroy 1 | . 1 . . Melee Attacks . | . . . . Impact . | . . . . Slashing . | . . . . Piercing . | . . . . Sneak Attacks . | . . . . Combat Hostiles . | . . . . Follow-up Attacks . | . . . . Damage Inflicted 703 | . 336 47 320 Guns 693 | . 326 47 320 Cannons . | . . . . Explosions . | . . . . Melee . | . . . . Ramming 10 | . 10 . . Kinetic 339 | . 164 47 128 Thermal 354 | . 162 . 192 Explosive . | . . . . Electromagnetic . | . . . . Impact . | . . . . Slashing . | . . . . Piercing . | . . . . Highest Corruption . | . . . . Average Corruption . | . . . . Corruption Purged . | . . . . Corruption Blocked . | . . . . Overload Shots . | . . . . Overflow Damage . | . . . . Projectiles . | . . . . Explosions . | . . . . Melee . | . . . . Knockbacks . | . . . . Impact . | . . . . Kinetic . | . . . . Secondary . | . . . . Self-Inflicted Damage . | . . . . Shots . | . . . . Rammed . | . . . . Targets Rammed 3 | . 3 . . Kicked 3 | . 3 . . Crushed . | . . . . Highest Temperature 210 | . 90 . 210 Average Temperature 81 | . 38 . 112 Received Heat Transfer 258 | . 153 . 105 Siege Activations . | . . . . Robots Corrupted . | . . . . Combat Hostiles . | . . . . Parts Fried . | . . . . Impact Corruptions . | . . . . Robots Melted . | . . . . Combat Hostiles . | . . . . Parts Melted . | . . . . Heat Transferred 943 | . 703 . 240 Parts Sabotaged . | . . . . Parts Stolen . | . . . . Parts Stripped . | . . . . Power Chain Reactions . | . . . . Alert | -11 -10 -10 -9 ------- Run | Yrd Mat Min Mat Peak Influence 270 | . 270 141 129 Initial 101 | . . 101 54 Average 73 | . 88 114 68 Maximum Alert Level 1 | . 1 . . Low Security (%) 89 | 100 80 100 100 Level 1 10 | . 19 . . Level 2 . | . . . . Level 3 . | . . . . Level 4 . | . . . . Level 5 . | . . . . High Security . | . . . . Max Security . | . . . . Squads Dispatched 1 | . 1 . . Investigation . | . . . . Extermination . | . . . . Reinforcement 1 | . 1 . . Assault . | . . . . Garrison . | . . . . Intercept . | . . . . Searches Triggered . | . . . . Construction Impeded . | . . . . Haulers Reinforced . | . . . . Active Scanning Responses . | . . . . Cargo Convoy Interrupts . | . . . . Stealth | -11 -10 -10 -9 --------- Run | Yrd Mat Min Mat Distress Signals 1 | . 1 . . Communications Jammed . | . . . . Distress Signals . | . . . . Times Spotted 23 | . 15 3 5 Peak Tracking Total 5 | . 5 2 3 Tactical Retreats 2 | . 2 . . Traps | -11 -10 -10 -9 ------- Run | Yrd Mat Min Mat Traps Triggered . | . . . . Indirectly . | . . . . Trap Hack Attempts . | . . . . Triggered . | . . . . Disarmed . | . . . . Reprogrammed 6 | . 6 . . Reused 1 | . 1 . . Traps Extracted . | . . . . Installed . | . . . . Triggered 1 | . 1 . . Machines | -11 -10 -10 -9 ---------- Run | Yrd Mat Min Mat Machines Disabled . | . . . . Max in Single Turn . | . . . . Machines Repaired . | . . . . Machines Dismantled . | . . . . Machines Sabotaged . | . . . . Overloaded Fab Kills . | . . . . Hacking | -11 -10 -10 -9 --------- Run | Yrd Mat Min Mat Machines Accessed 1 | . 1 . . Terminals 1 | . 1 . . Fabricators . | . . . . Repair Stations . | . . . . Recycling Units . | . . . . Scanalyzers . | . . . . Garrison Access . | . . . . Total Hacks 5 | . 5 . . Successful 3 | . 3 . . Failed 2 | . 2 . . Catastrophic . | . . . . Database Lockouts . | . . . . Manual . | . . . . Terminals 5 | . 5 . . Fabricators . | . . . . Repair Stations . | . . . . Recycling Units . | . . . . Scanalyzers . | . . . . Garrison Access . | . . . . Terminal Hacks 3 | . 3 . . Reprogram Traps 1 | . 1 . . Dispatch Records 1 | . 1 . . Zone Layout 1 | . 1 . . Fabricator Hacks . | . . . . Repair Station Hacks . | . . . . Recycling Unit Hacks . | . . . . Scanalyzer . | . . . . Garrison Access Hacks . | . . . . Unauthorized Hacks . | . . . . Terminals . | . . . . Fabricators . | . . . . Repair Stations . | . . . . Recycling Units . | . . . . Scanalyzers . | . . . . Garrison Access . | . . . . Data Cores Recovered . | . . . . Used . | . . . . Hacking Detections 1 | . 1 . . Full Trace Events . | . . . . Feedback Events . | . . . . Feedback Blocked . | . . . . Robot Schematics Acquired . | . . . . Robots Built . | . . . . Authchips . | . . . . Time . | . . . . Total Robot Build Rating . | . . . . Part Schematics Acquired . | . . . . Parts Built . | . . . . Authchips . | . . . . Time . | . . . . Total Part Build Rating . | . . . . Parts Repaired . | . . . . Time . | . . . . Parts Recycled . | . . . . Recycled Matter . | . . . . Retrieved Matter . | . . . . Retrieved Components . | . . . . Parts Scanalyzed . | . . . . Part Schematics Acquired . | . . . . Parts Damaged . | . . . . Bothacking | -11 -10 -10 -9 ------------ Run | Yrd Mat Min Mat Used RIF Installer . | . . . . Robots Hacked . | . . . . Non-combat . | . . . . Combat . | . . . . Robot Hacks Applied . | . . . . Relay Couplers Released . | . . . . Fabnet Peak Effective % . | . . . . Robots Rewired . | . . . . Allies Hacked . | . . . . Hacks Repelled . | . . . . Allies | -11 -10 -10 -9 -------- Run | Yrd Mat Min Mat Total Allies . | . . . . Largest Group . | . . . . Highest-Rated Group . | . . . . Highest-Rated Ally . | . . . . Total Orders . | . . . . Ally Attacks . | . . . . Total Damage . | . . . . Kills . | . . . . Allies Corrupted . | . . . . Allies Melted . | . . . . Intel | -11 -10 -10 -9 ------- Run | Yrd Mat Min Mat Robot Analysis Total . | . . . . Derelict Logs Recovered . | . . . . Drone Launches . | . . . . Drone Recoveries . | . . . . Exploration | -11 -10 -10 -9 ------------- Run | Yrd Mat Min Mat Turns Passed 753 | 115 390 87 161 Spaces Moved 419 | 51 216 56 96 Core 97 | 51 45 . 1 Treads . | . . . . Legs 322 | . 171 56 95 Wheels . | . . . . Hover . | . . . . Flight . | . . . . Fastest Speed 50 | 50 120 120 120 Average Speed 146 | 206 147 120 127 Slowest Speed 250 | 250 250 120 250 Overloaded Moves . | . . . . Propulsion Burnouts . | . . . . Robots Hopped . | . . . . Cave-ins Triggered . | . . . . Exploration Rate (%) 15 | 5 34 16 8 Regions Visited 3 Branch Regions 1 Pre-discovered Areas . | . . . . Known Exits Taken . | . . . . Unknown Exits Taken 3 | 1 1 1 . Scrap Searched . | . . . . Spaces Dug . | . . . . Terrain Destroyed . | . . . . Melee . | . . . . Projectile . | . . . . AOE . | . . . . Terrain Rammed . | . . . . Walls Destroyed . | . . . . Machines Disabled . | . . . . Actions | -11 -10 -10 -9 --------- Run | Yrd Mat Min Mat Total 486 | 62 247 65 112 Wait 5 | . 5 . . Move 416 | 50 215 55 96 Hop . | . . . . Pick Up 12 | 8 1 1 2 Fast Attach . | . . . . Attach 9 | 4 3 1 1 Detach . | . . . . Swap 2 | . . 1 1 Drop 1 | . . 1 . Fire 38 | . 20 6 12 Melee . | . . . . Ram . | . . . . Kick 3 | . 3 . . Crush . | . . . . Escape Stasis . | . . . . Rewire . | . . . . Trap . | . . . . Miscellaneous . | . . . . Route ------- -11/Scrapyard -10/Materials -10/Mines -9/Materials History --------- Turn | Location | Event 2 | -11/Scrapyard | Met Revision 17 10 | -11/Scrapyard | Discovered new exit (range 16) 116 | -11/Scrapyard | Entered Materials 313 | -10/Materials | Build established: Mutant 491 | -10/Materials | Discovered new exit (range 12) 506 | -10/Materials | Entered Mines 534 | -10/Mines | Met a Derelict bent on vengeance 550 | -10/Mines | Discovered new exit (range 15) 593 | -10/Mines | Entered Materials 593 | -9/Materials | Evolved 2 slots: Propulsion x1, Weapon x1 754 | -9/Materials | Self-destructed Last Messages --------------- PARAMETERS=PROPULSION+1,WEAPON+1 LOCATION=UNKNOWN GOAL=ESCAPE Acquired Particle Gun. Acquired Spread Laser. K-01 Serf collects debris. G-47 Trooper destroyed. K-01 Serf collects debris. K-01 Serf cleans the Repair Station. K-01 Serf destroyed. Aluminum Leg destroyed. G-34 Mercenary destroyed. R-06 Scavenger collects Aluminum Leg. R-06 Scavenger collects Wheel. R-06 Scavenger collects Med. Matter Pod. R-06 Scavenger collects Lgt. Ion Engine. Y-45 Defender destroyed. Acquired 24 matter. Acquired 30 matter. Aluminum Leg destroyed. Map ----- +----------------------------------------------------+ | | | | | | | | | | | | | | | | | | | | | | | | | | | | | | | | | | | | | ??#############??????????????????????????????????? | | ?# #??????????????????????????????????? | | ?# " """"" #???????###########????????????????? | | ?# """"""""" #???????# #????????????????? | | ?# """ """ #???????# """ #????????????????? | | ?# ! #?####### """ #????????????????? | | ?#######+######## # """ #????????????????? | | ??# # @ " " #????????????????? | | ??# g b| "R" #????????????????? | | ??# #% """ #????????????????? | | ??######+######## #! #????????????????? | | ????# ######+#############????????????????? | | ????# """ # ########??????????????????? | | ????# """ # / ???????????? | | ????# """ # #########?????????????????? | | ????# # #?????????????????????????? | | ????# """ # #?????????????????????????? | | ????# """ # #?????????????????????????? | | ????# """ # #?????????????????????????? | | ????# # #?????????????????????????? | | ????####################?????????????????????????? | | ?????????????????????????????????????????????????? | | ?????????????????????????????????????????????????? | | ?????????????????????????????????????????????????? | | ?????????????????????????????????????????????????? | | ?????????????????????????????????????????????????? | | ?????????????????????????????????????????????????? | | ?????????????????????????????????????????????????? | | ?????????????????????????????????????????????????? | | ?????????????????????????????????????????????????? | | ?????????????????????????????????????????????????? | | ?????????????????????????????????????????????????? | +----------------------------------------------------+ Best States ------------- Heat Dissipation 38 Energy Generation 10 Energy Capacity 250 Matter Stores 300 Matter Capacity 300 Sight Range 16 Terrain Scan Density 10 Evasion (%) 55 Item Schematics ----------------- None Robot Schematics ------------------ None Fabricated ------------ Nothing Alien Tech Used ----------------- None Achievements -------------- None Challenges ------------ None Game ------ Seed SupercompositeNetworkShield Manual? 0 Play Time 00:08:48 Cumulative 6.3 hours Start 2024.04.08 @ 10:17:18 End 2024.04.08 @ 10:32:28 Sessions 1 Manual Loads 0 Difficulty Rogue Special Mode None Game No. 13 Rogue 13 Adventurer 0 Explorer 0 Win Type - Total 0 Types 0/0/0/0/0/0/0/0/0 Lore% 9 Gallery% 12 Achievement% 10 Wizard Run 0 Options --------- Layout 2 ASCII 0 Keyboard 0 Movement Arrows Keybinds 0 Fullscreen 1 Font 24/Cog Map View 50x44 Zoom Use 0% Tactical HUD 0 Map Filters NONE Filters NONE Steam 1 RUN: 8c0f33e0-a832-4f1d-8d91-c1f3933387b9